fUSD/lending_fUSD_20240409
["ID","MTS","AMOUNT","RATE_DAILY","PERIOD"]
[321950143,1712647855566,-500.0,0.00021095,2]
[321950145,1712647855575,-574.97,0.00021095,2]
[321950147,1712647855583,-500.0,0.00021095,2]
[321950149,1712647855593,-879.55,0.00021095,2]
[321950151,1712647855602,-719.89,0.00021095,2]
[321950153,1712647855611,-565.86,0.00021095,2]
[321950155,1712647855620,-500.0,0.00021095,2]
[321950157,1712647855629,-500.0,0.00021095,2]
[321950159,1712647855638,-518.48150476,0.00021095,2]
[321950161,1712647855647,-500.0,0.00021095,2]
[321950163,1712647855656,-500.0,0.00021095,2]
[321950165,1712647855664,-557.28,0.00021095,2]
[321950167,1712647855674,-500.0,0.00021095,2]
[321950169,1712647855683,-500.0,0.00021095,2]
[321950171,1712647855694,-497.78917979,0.00021095,2]
[321950173,1712647855703,-500.0,0.00021095,2]
[321950175,1712647855712,-500.0,0.00021095,2]
[321950177,1712647855721,-500.0,0.00021095,2]
[321950179,1712647855730,-500.0,0.00021095,2]
[321950181,1712647855739,-500.94165629,0.00021095,2]
[321950182,1712647855748,-552.42,0.00021095,2]
[321950184,1712647855757,-500.0,0.00021095,2]
[321950187,1712647855767,-500.0,0.00021095,2]
[321950189,1712647855776,-500.0,0.00021095,2]
[321950191,1712647855785,-500.0,0.00021095,2]
[321950193,1712647855794,-150.78970675,0.00021095,2]
[321950195,1712647855804,-511.23460483,0.00021095,2]
[321950197,1712647855813,-500.0,0.00021095,2]
[321950199,1712647855823,-500.0,0.00021095,2]
[321950201,1712647855832,-654.58,0.00021095,2]
[321950203,1712647855842,-932.93,0.00021095,2]
[321950205,1712647855851,-494.31804622,0.00021095,2]
[321950207,1712647855860,-1297.98,0.00021095,2]
[321950209,1712647855869,-500.0,0.00021095,2]
[321950211,1712647855878,-505.3498709,0.00021095,2]
[321950213,1712647855887,-500.0,0.00021095,2]
[321950215,1712647855896,-808.51,0.00021095,2]
[321950217,1712647855904,-340.99405193,0.00021095,2]
[321950219,1712647855913,-502.42216143,0.00021095,2]
[321950221,1712647855923,-500.0,0.00021095,2]
[321950223,1712647855932,-694.97,0.00021095,2]
[321950225,1712647855946,-515.25125618,0.00021095,2]
[321950227,1712647855958,-544.15755886,0.00021095,2]
[321950229,1712647855967,-861.63,0.00021095,2]
[321950231,1712647855976,-500.0,0.00021095,2]
[321950233,1712647855986,-500.0,0.00021095,2]
[321950235,1712647855995,-1187.82,0.00021095,2]
[321950237,1712647856004,-662.75,0.00021095,2]
[321950239,1712647856013,-500.0,0.00021095,2]
[321950241,1712647856022,-500.0,0.00021095,2]
[321950243,1712647856032,-173.82772728,0.00021095,2]
[321950245,1712647856041,-500.0,0.00021095,2]
[321950247,1712647856050,-500.0,0.00021095,2]
[321950249,1712647856059,-500.35932231,0.00021095,2]
[321950251,1712647856068,-555.51,0.00021095,2]
[321950253,1712647856077,-725.4,0.00021095,2]
[321950255,1712647856086,-500.0,0.00021095,2]
[321950257,1712647856095,-500.0,0.00021095,2]
[321950259,1712647856104,-500.0,0.00021095,2]
[321950261,1712647856113,-500.0,0.00021095,2]
[321950263,1712647856122,-1187.06,0.00021095,2]
[321950265,1712647856131,-500.0,0.00021095,2]
[321950267,1712647856143,-500.0,0.00021095,2]
[321950269,1712647856152,-500.0,0.00021095,2]
[321950271,1712647856161,-611.14049761,0.00021095,2]
[321950273,1712647856171,-1506.06,0.00021095,2]
[321950275,1712647856180,-2000.0,0.00021095,2]
[321950277,1712647856192,-501.38,0.00021095,2]
[321950279,1712647856201,-500.0,0.00021095,2]
[321950281,1712647856211,-500.0,0.00021095,2]
[321950283,1712647856220,-504.82988491,0.00021095,2]
[321950285,1712647856229,-500.0,0.00021095,2]
[321950287,1712647856238,-753.16,0.00021095,2]
[321950289,1712647856247,-500.0,0.00021095,2]
[321950291,1712647856257,-500.0,0.00021095,2]
[321950292,1712647856267,-500.0,0.00021095,2]
[321950294,1712647856277,-500.97196025,0.00021095,2]
[321950297,1712647856287,-500.0,0.00021095,2]
[321950299,1712647856297,-500.0,0.00021095,2]
[321950301,1712647856306,-500.0,0.00021095,2]
[321950303,1712647856315,-500.0,0.00021095,2]
[321950305,1712647856324,-570.58,0.00021095,2]
[321950307,1712647856333,-512.09,0.00021095,2]
[321950309,1712647856342,-511.00704011,0.00021095,2]
[321950311,1712647856352,-878.77,0.00021095,2]
[321950313,1712647856362,-500.0,0.00021095,2]
[321950315,1712647856371,-500.0,0.00021095,2]
[321950317,1712647856380,-522.67568329,0.00021095,2]
[321950319,1712647856390,-500.0,0.00021095,2]
[321950321,1712647856400,-500.0,0.00021095,2]
[321950323,1712647856411,-500.0,0.00021095,2]
[321950325,1712647856420,-500.0,0.00021095,2]
[321950326,1712647856430,-566.77723334,0.00021095,2]
[321950329,1712647856443,-500.0,0.00021095,2]
[321950331,1712647856454,-504.22029841,0.00021095,2]
[321950333,1712647856464,-1043.63,0.00021095,2]
[321950335,1712647856473,-500.0,0.00021095,2]
[321950337,1712647856483,-500.0,0.00021095,2]
[321950339,1712647856493,-458.81135689,0.00021095,2]
[321950341,1712647856502,-500.0,0.00021095,2]
[321950343,1712647856512,-500.0,0.00021095,2]
[321950345,1712647856521,-894.78,0.00021095,2]
[321950347,1712647856531,-500.0,0.00021095,2]
[321950349,1712647856541,-500.0,0.00021095,2]
[321950351,1712647856550,-500.0,0.00021095,2]
[321950353,1712647856560,-500.0,0.00021095,2]
[321950355,1712647856571,-500.0,0.00021095,2]
[321950386,1712647856838,-500.0,0.00021095,2]
[321950390,1712647856905,-500.0,0.00021095,2]
[321950392,1712647856916,-500.0,0.00021095,2]
[321950394,1712647856925,-984.42,0.00021095,2]
[321950396,1712647856935,-519.06524382,0.00021095,2]
[321950398,1712647856946,-500.0,0.00021095,2]
[321950400,1712647856957,-500.0,0.00021095,2]
[321950401,1712647856967,-500.0,0.00021095,2]
[321950403,1712647856977,-500.0,0.00021095,2]
[321950405,1712647856987,-500.0,0.00021095,2]
[321950407,1712647856997,-500.0,0.00021095,2]
[321950409,1712647857008,-500.0,0.00021095,2]
[321950410,1712647857018,-562.73,0.00021095,2]
[321950411,1712647857029,-500.0,0.00021095,2]
[321950413,1712647857039,-500.0,0.00021095,2]
[321950415,1712647857050,-500.0,0.00021095,2]
[321950417,1712647857060,-500.0,0.00021095,2]
[321950419,1712647857070,-500.0,0.00021095,2]
[321950421,1712647857079,-500.0,0.00021095,2]
[321950423,1712647857090,-500.0,0.00021095,2]
[321950425,1712647857101,-500.0,0.00021095,2]
[321950427,1712647857110,-277.27551879,0.00021095,2]
[321950429,1712647857120,-500.0,0.00021095,2]
[321950431,1712647857131,-500.0,0.00021095,2]
[321950433,1712647857143,-500.0,0.00021095,2]
[321950436,1712647857154,-500.0,0.00021095,2]
[321950438,1712647857164,-500.0,0.00021095,2]
[321950439,1712647857174,-500.0,0.00021095,2]
[321950442,1712647857186,-500.0,0.00021095,2]
[321950444,1712647857199,-500.0,0.00021095,2]
[321950446,1712647857212,-500.0,0.00021095,2]
[321950448,1712647857222,-398.44044328,0.00021095,2]
[321950450,1712647857232,-500.0,0.00021095,2]
[321950452,1712647857241,-500.0,0.00021095,2]
[321950454,1712647857250,-500.0,0.00021095,2]
[321950456,1712647857261,-1104.65,0.00021095,2]
[321950458,1712647857270,-500.0,0.00021095,2]
[321950460,1712647857280,-500.0,0.00021095,2]
[321950462,1712647857289,-500.0,0.00021095,2]
[321950464,1712647857299,-567.01,0.00021095,2]
[321950466,1712647857308,-500.0,0.00021095,2]
[321950468,1712647857318,-500.0,0.00021095,2]
[321950470,1712647857329,-946.63,0.00021095,2]
[321950472,1712647857339,-500.0,0.00021095,2]
[321950473,1712647857349,-509.84905323,0.00021095,2]
[321950475,1712647857360,-500.0,0.00021095,2]
[321950477,1712647857373,-564.23,0.00021095,2]
[321950480,1712647857384,-775.38,0.00021095,2]
[321950482,1712647857393,-500.0,0.00021095,2]
[321950483,1712647857403,-500.0,0.00021095,2]
[321950486,1712647857413,-500.0,0.00021095,2]
[321950487,1712647857423,-258.6031903,0.00021095,2]
[321950490,1712647857433,-500.0,0.00021095,2]
[321950492,1712647857445,-542.59582993,0.00021095,2]
[321950494,1712647857455,-500.0,0.00021095,2]
[321950496,1712647857465,-500.0,0.00021095,2]
[321950498,1712647857475,-500.0,0.00021095,2]
[321950500,1712647857484,-500.0,0.00021095,2]
[321950502,1712647857495,-500.0,0.00021095,2]
[321950504,1712647857505,-500.0,0.00021095,2]
[321950506,1712647857514,-500.0,0.00021095,2]
[321950508,1712647857523,-500.0,0.00021095,2]
[321950510,1712647857533,-642.87,0.00021095,2]
[321950512,1712647857542,-500.0,0.00021095,2]
[321950514,1712647857552,-500.0,0.00021095,2]
[321950516,1712647857562,-500.0,0.00021095,2]
[321950518,1712647857571,-500.0,0.00021095,2]
[321950520,1712647857581,-500.0,0.00021095,2]
[321950522,1712647857592,-500.0,0.00021095,2]
[321950524,1712647857602,-820.41,0.00021095,2]
[321950526,1712647857612,-460.51735363,0.00021095,2]
[321950528,1712647857622,-500.0,0.00021095,2]
[321950530,1712647857632,-500.0,0.00021095,2]
[321950532,1712647857642,-603.51,0.00021095,2]
[321950534,1712647857652,-500.0,0.00021095,2]
[321950535,1712647857662,-500.0,0.00021095,2]
[321950538,1712647857672,-500.0,0.00021095,2]
[321950540,1712647857682,-500.0,0.00021095,2]
[321950542,1712647857693,-500.0,0.00021095,2]
[321950544,1712647857703,-564.33,0.00021095,2]
[321950545,1712647857714,-582.43049935,0.00021095,2]
[321950548,1712647857725,-1179.95,0.00021095,2]
[321950550,1712647857737,-500.0,0.00021095,2]
[321950552,1712647857746,-500.0,0.00021095,2]
[321950554,1712647857756,-432.83535226,0.00021095,2]
[321950555,1712647857767,-500.0,0.00021095,2]
[321950557,1712647857777,-858.83,0.00021095,2]
[321950559,1712647857787,-500.0,0.00021095,2]
[321950561,1712647857797,-500.0,0.00021095,2]
[321950563,1712647857806,-1040.56,0.00021095,2]
[321950565,1712647857816,-500.0,0.00021095,2]
[321950567,1712647857825,-500.0,0.00021095,2]
[321950570,1712647857836,-500.0,0.00021095,2]
[321950572,1712647857846,-787.25,0.00021095,2]
[321950573,1712647857856,-500.0,0.00021095,2]
[321950575,1712647857866,-500.0,0.00021095,2]
[321950578,1712647857877,-500.0,0.00021095,2]
[321950580,1712647857888,-500.0,0.00021095,2]
[321950582,1712647857898,-707.44,0.00021095,2]
[321950584,1712647857908,-500.0,0.00021095,2]
[321950586,1712647857918,-500.0,0.00021095,2]
[321950588,1712647857928,-500.0,0.00021095,2]
[321950590,1712647857940,-500.0,0.00021095,2]
[321950592,1712647857950,-500.0,0.00021095,2]
[321950594,1712647857959,-589.85,0.00021095,2]
[321950596,1712647857968,-575.44,0.00021095,2]
[321950598,1712647857978,-795.38,0.00021095,2]
[321950600,1712647857987,-500.0,0.00021095,2]
[321950602,1712647857996,-500.0,0.00021095,2]
[321950604,1712647858006,-683.94,0.00021095,2]
[321950606,1712647858015,-584.84,0.00021095,2]
[321950608,1712647858025,-500.0,0.00021095,2]
[321950610,1712647858034,-300.0,0.00021095,2]
[321950612,1712647858044,-500.0,0.00021095,2]
[321950614,1712647858054,-500.0,0.00021095,2]
[321950616,1712647858064,-500.0,0.00021095,2]
[321950618,1712647858074,-500.0,0.00021095,2]
[321950620,1712647858084,-500.0,0.00021095,2]
[321950622,1712647858094,-500.0,0.00021095,2]
[321950624,1712647858105,-500.0,0.00021095,2]
[321950626,1712647858114,-1385.84,0.00021095,2]
[321950628,1712647858124,-500.0,0.00021095,2]
[321950630,1712647858134,-819.22,0.00021095,2]
[321950632,1712647858147,-500.0,0.00021095,2]
[321950634,1712647858156,-500.0,0.00021095,2]
[321950636,1712647858166,-500.0,0.00021095,2]
[321950638,1712647858175,-588.16,0.00021095,2]
[321950640,1712647858187,-503.75947919,0.00021095,2]
[321950642,1712647858198,-500.0,0.00021095,2]
[321950644,1712647858209,-500.0,0.00021095,2]
[321950646,1712647858218,-503.87093175,0.00021095,2]
[321950648,1712647858228,-1373.16,0.00021095,2]
[321950650,1712647858237,-503.81892821,0.00021095,2]
[321950651,1712647858247,-500.0,0.00021095,2]
[321950654,1712647858258,-500.0,0.00021095,2]
[321950656,1712647858269,-503.98696433,0.00021095,2]
[321950657,1712647858278,-500.0,0.00021095,2]
[321950659,1712647858288,-500.0,0.00021095,2]
[321950661,1712647858299,-911.45,0.00021095,2]
[321950663,1712647858308,-181.59,0.00021095,2]
[321950665,1712647858319,-500.0,0.00021095,2]
[321950667,1712647858329,-500.0,0.00021095,2]
[321950669,1712647858340,-885.93,0.00021095,2]
[321950671,1712647858349,-501.8,0.00021095,2]
[321950673,1712647858360,-500.0,0.00021095,2]
[321950676,1712647858371,-532.16866788,0.00021095,2]
[321950677,1712647858381,-500.0,0.00021095,2]
[321950680,1712647858391,-500.0,0.00021095,2]
[321950682,1712647858400,-501.5441846,0.00021095,2]
[321950684,1712647858411,-500.0,0.00021095,2]
[321950685,1712647858422,-500.0,0.00021095,2]
[321950687,1712647858432,-500.0,0.00021095,2]
[321950690,1712647858443,-500.0,0.00021095,2]
[321950691,1712647858453,-500.0,0.00021095,2]
[321950694,1712647858463,-1547.94,0.00021095,2]
[321950696,1712647858474,-500.0,0.00021095,2]
[321950698,1712647858484,-516.47,0.00021095,2]
[321950699,1712647858494,-500.0,0.00021095,2]
[321950701,1712647858503,-509.17,0.00021095,2]
[321950703,1712647858513,-500.0,0.00021095,2]
[321950705,1712647858523,-545.63,0.00021095,2]
[321950708,1712647858533,-500.0,0.00021095,2]
[321950710,1712647858543,-500.0,0.00021095,2]
[321950712,1712647858554,-926.52,0.00021095,2]
[321950714,1712647858564,-793.56,0.00021095,2]
[321950716,1712647858574,-686.71,0.00021095,2]
[321950718,1712647858583,-1123.34,0.00021095,2]
[321950719,1712647858594,-1800.67,0.00021095,2]
[321950722,1712647858607,-500.0,0.00021095,2]
[321950724,1712647858619,-500.0,0.00021095,2]
[321950725,1712647858630,-500.0,0.00021095,2]
[321950727,1712647858640,-500.0,0.00021095,2]
[321950729,1712647858650,-500.0,0.00021095,2]
[321950732,1712647858661,-500.0,0.00021095,2]
[321950734,1712647858671,-601.04,0.00021095,2]
[321950735,1712647858681,-513.06503257,0.00021095,2]
[321950737,1712647858692,-1746.54,0.00021095,2]
[321950739,1712647858702,-593.91,0.00021095,2]
[321950741,1712647858712,-500.0,0.00021095,2]
[321950743,1712647858723,-500.0,0.00021095,2]
[321950745,1712647858732,-500.0,0.00021095,2]
[321950748,1712647858742,-500.0,0.00021095,2]
[321950749,1712647858752,-500.0,0.00021095,2]
[321950750,1712647858763,-500.0,0.00021095,2]
[321950751,1712647858773,-1236.77,0.00021095,2]
[321950752,1712647858784,-500.0,0.00021095,2]
[321950753,1712647858794,-500.0,0.00021095,2]
[321950754,1712647858805,-1010.98,0.00021095,2]
[321950755,1712647858814,-1355.83,0.00021095,2]
[321950756,1712647858823,-1028.33,0.00021095,2]
[321950757,1712647858833,-881.94,0.00021095,2]
[321950758,1712647858842,-500.0,0.00021095,2]
[321950759,1712647858852,-575.82,0.00021095,2]
[321950760,1712647858862,-2291.86,0.00021095,2]
[321950761,1712647858871,-905.24,0.00021095,2]
[321950762,1712647858882,-1721.16,0.00021095,2]
[321950763,1712647858894,-500.0,0.00021095,2]
[321950764,1712647858904,-796.03,0.00021095,2]
[321950765,1712647858914,-959.72,0.00021095,2]
[321950766,1712647858926,-500.0,0.00021095,2]
[321950767,1712647858937,-977.31,0.00021095,2]
[321950768,1712647858949,-2319.17,0.00021095,2]
[321950769,1712647858958,-503.55061836,0.00021095,2]
[321950770,1712647858968,-2456.32,0.00021095,2]
[321950771,1712647858980,-500.0,0.00021095,2]
[321950772,1712647858990,-561.99,0.00021095,2]
[321950773,1712647859000,-502.75228883,0.00021095,2]
[321950774,1712647859010,-500.0,0.00021095,2]
[321950775,1712647859022,-500.0,0.00021095,2]
[321950776,1712647859032,-777.84,0.00021095,2]
[321950777,1712647859042,-552.9,0.00021095,2]
[321950778,1712647859053,-500.0,0.00021095,2]
[321950779,1712647859063,-500.0,0.00021095,2]
[321950780,1712647859072,-672.09,0.00021095,2]
[321950781,1712647859083,-880.66,0.00021095,2]
[321950782,1712647859093,-1954.51,0.00021095,2]
[321950783,1712647859103,-500.0,0.00021095,2]
[321950784,1712647859114,-538.60624321,0.00021095,2]
[321950785,1712647859125,-269.00491454,0.00021095,2]
[321950786,1712647859139,-500.0,0.00021095,2]
[321950787,1712647859149,-1767.31,0.00021095,2]
[321950788,1712647859158,-813.43,0.00021095,2]
[321950789,1712647859169,-500.0,0.00021095,2]
[321950790,1712647859179,-500.0,0.00021095,2]
[321950791,1712647859191,-2214.17,0.00021095,2]
[321950792,1712647859201,-500.0,0.00021095,2]
[321950793,1712647859213,-500.0,0.00021095,2]
[321950794,1712647859226,-506.8189515,0.00021095,2]
[321950795,1712647859237,-500.0,0.00021095,2]
[321950796,1712647859247,-500.0,0.00021095,2]
[321950797,1712647859257,-500.0,0.00021095,2]
[321950798,1712647859267,-642.86,0.00021095,2]
[321950799,1712647859277,-500.0,0.00021095,2]
[321950800,1712647859287,-2307.74,0.00021095,2]
[321950801,1712647859297,-514.37669381,0.00021095,2]
[321950802,1712647859308,-500.0,0.00021095,2]
[321950803,1712647859318,-500.0,0.00021095,2]
[321950804,1712647859328,-500.0,0.00021095,2]
[321950805,1712647859338,-2046.06,0.00021095,2]
[321950806,1712647859349,-500.0,0.00021095,2]
[321950807,1712647859360,-500.0,0.00021095,2]
[321950808,1712647859453,-1253.17,0.00021095,2]
[321950809,1712647859463,-500.0,0.00021095,2]
[321950810,1712647859472,-500.0,0.00021095,2]
[321950811,1712647859482,-500.0,0.00021095,2]
[321950812,1712647859492,-500.0,0.00021095,2]
[321950813,1712647859502,-506.3277465,0.00021095,2]
[321950814,1712647859511,-959.08,0.00021095,2]
[321950815,1712647859521,-500.0,0.00021095,2]
[321950816,1712647859531,-1646.74,0.00021095,2]
[321950817,1712647859540,-1740.22,0.00021095,2]
[321950818,1712647859550,-500.0,0.00021095,2]
[321950819,1712647859560,-579.57,0.00021095,2]
[321950820,1712647859569,-500.0,0.00021095,2]
[321950821,1712647859578,-1657.64,0.00021095,2]
[321950822,1712647859587,-500.0,0.00021095,2]
[321950823,1712647859598,-1854.48,0.00021095,2]
[321950824,1712647859607,-500.0,0.00021095,2]
[321950825,1712647859616,-500.0,0.00021095,2]
[321950826,1712647859626,-500.0,0.00021095,2]
[321950827,1712647859637,-500.0,0.00021095,2]
[321950828,1712647859647,-501.4316603,0.00021095,2]
[321950829,1712647859658,-500.0,0.00021095,2]
[321950830,1712647859669,-705.99,0.00021095,2]
[321950831,1712647859679,-500.0,0.00021095,2]
[321950832,1712647859690,-506.87,0.00021095,2]
[321950833,1712647859700,-798.08,0.00021095,2]
[321950834,1712647859711,-500.0,0.00021095,2]
[321950835,1712647859722,-500.0,0.00021095,2]
[321950836,1712647859731,-500.0,0.00021095,2]
[321950837,1712647859741,-500.0,0.00021095,2]
[321950838,1712647859751,-500.0,0.00021095,2]
[321950839,1712647859761,-1180.75,0.00021095,2]
[321950840,1712647859772,-500.0,0.00021095,2]
[321950841,1712647859781,-500.0,0.00021095,2]
[321950842,1712647859791,-500.0,0.00021095,2]
[321950843,1712647859801,-500.0,0.00021095,2]
[321950844,1712647859811,-505.8246358,0.00021095,2]
[321950845,1712647859822,-2859.37,0.00021095,2]
[321950846,1712647859832,-762.78,0.00021095,2]
[321950847,1712647859843,-500.0,0.00021095,2]
[321950848,1712647859853,-1246.54,0.00021095,2]
[321950849,1712647859863,-500.0,0.00021095,2]
[321950850,1712647859872,-500.6625726,0.00021095,2]
[321950851,1712647859881,-582.2,0.00021095,2]
[321950852,1712647859891,-500.0,0.00021095,2]
[321950853,1712647859900,-500.0,0.00021095,2]
[321950854,1712647859909,-500.0,0.00021095,2]
[321950855,1712647859920,-500.0,0.00021095,2]
[321950856,1712647859932,-500.0,0.00021095,2]
[321950857,1712647859945,-500.0,0.00021095,2]
[321950858,1712647859955,-500.0,0.00021095,2]
[321950859,1712647859966,-500.0,0.00021095,2]
[321950860,1712647859976,-500.0,0.00021095,2]
[321950861,1712647859986,-2349.3,0.00021095,2]
[321950862,1712647859996,-500.0,0.00021095,2]
[321950863,1712647860006,-500.0,0.00021095,2]
[321950864,1712647860017,-500.0,0.00021095,2]
[321950865,1712647860028,-1906.17,0.00021095,2]
[321950866,1712647860038,-531.3172688,0.00021095,2]
[321950867,1712647860049,-500.0,0.00021095,2]
[321950868,1712647860058,-608.1,0.00021095,2]
[321950869,1712647860069,-500.0,0.00021095,2]
[321950870,1712647860079,-500.0,0.00021095,2]
[321950871,1712647860089,-200.60847933,0.00021095,2]
[321950872,1712647860100,-500.0,0.00021095,2]
[321950873,1712647860111,-521.11672944,0.00021095,2]
[321950874,1712647860120,-500.0,0.00021095,2]
[321950875,1712647860131,-500.0,0.00021095,2]
[321950876,1712647860141,-1036.14,0.00021095,2]
[321950877,1712647860153,-500.0,0.00021095,2]
[321950878,1712647860163,-500.0,0.00021095,2]
[321950879,1712647860173,-747.23,0.00021095,2]
[321950880,1712647860183,-500.0,0.00021095,2]
[321950881,1712647860195,-500.0,0.00021095,2]
[321950882,1712647860204,-500.0,0.00021095,2]
[321950883,1712647860213,-500.0,0.00021095,2]
[321950884,1712647860225,-1431.08,0.00021095,2]
[321950885,1712647860235,-500.0,0.00021095,2]
[321950886,1712647860244,-535.97,0.00021095,2]
[321950887,1712647860253,-500.0,0.00021095,2]
[321950888,1712647860262,-500.0,0.00021095,2]
[321950889,1712647860271,-757.87,0.00021095,2]
[321950890,1712647860281,-679.81,0.00021095,2]
[321950891,1712647860290,-500.0,0.00021095,2]
[321950892,1712647860299,-500.0,0.00021095,2]
[321950893,1712647860308,-2493.29,0.00021095,2]
[321950894,1712647860318,-500.0,0.00021095,2]
[321950895,1712647860327,-608.78,0.00021095,2]
[321950896,1712647860338,-500.0,0.00021095,2]
[321950897,1712647860348,-500.0,0.00021095,2]
[321950898,1712647860357,-506.04728474,0.00021095,2]
[321950899,1712647860367,-1341.03,0.00021095,2]
[321950900,1712647860376,-500.0,0.00021095,2]
[321950901,1712647860385,-525.32288075,0.00021095,2]
[321950902,1712647860395,-500.0,0.00021095,2]
[321950903,1712647860405,-500.0,0.00021095,2]
[321950904,1712647860414,-500.0,0.00021095,2]
[321950905,1712647860424,-500.0,0.00021095,2]
[321950906,1712647860434,-917.89,0.00021095,2]
[321950907,1712647860445,-500.0,0.00021095,2]
[321950908,1712647860455,-206.41906339,0.00021095,2]
[321950909,1712647860465,-500.0,0.00021095,2]
[321950910,1712647860474,-500.0,0.00021095,2]
[321950911,1712647860484,-1379.3,0.00021095,2]
[321950912,1712647860494,-511.02,0.00021095,2]
[321950913,1712647860504,-687.05,0.00021095,2]
[321950914,1712647860513,-2025.6,0.00021095,2]
[321950915,1712647860524,-541.49,0.00021095,2]
[321950916,1712647860533,-500.0,0.00021095,2]
[321950917,1712647860542,-500.0,0.00021095,2]
[321950918,1712647860551,-500.0,0.00021095,2]
[321950919,1712647860561,-500.0,0.00021095,2]
[321950920,1712647860570,-500.0,0.00021095,2]
[321950921,1712647860579,-500.0,0.00021095,2]
[321950922,1712647860589,-500.0,0.00021095,2]
[321950923,1712647860598,-233.19,0.00021095,2]
[321950924,1712647860607,-500.0,0.00021095,2]
[321950925,1712647860616,-500.0,0.00021095,2]
[321950926,1712647860625,-500.0,0.00021095,2]
[321950927,1712647860634,-1097.9,0.00021095,2]
[321950928,1712647860644,-500.0,0.00021095,2]
[321950929,1712647860653,-359.2585279,0.00021095,2]
[321950930,1712647860663,-1370.04,0.00021095,2]
[321950931,1712647860674,-500.0,0.00021095,2]
[321950932,1712647860682,-972.41,0.00021095,2]
[321950933,1712647860694,-1711.21,0.00021095,2]
[321950934,1712647860703,-525.40897558,0.00021095,2]
[321950935,1712647860713,-593.69,0.00021095,2]
[321950936,1712647860722,-2704.81,0.00021095,2]
[321950937,1712647860731,-1671.34,0.00021095,2]
[321950938,1712647860740,-500.0,0.00021095,2]
[321950939,1712647860749,-500.0,0.00021095,2]
[321950940,1712647860758,-1044.64,0.00021095,2]
[321950941,1712647860768,-500.0,0.00021095,2]
[321950942,1712647860777,-500.0,0.00021095,2]
[321950943,1712647860786,-500.0,0.00021095,2]
[321950944,1712647860796,-500.0,0.00021095,2]
[321950945,1712647860805,-647.34,0.00021095,2]
[321950946,1712647860814,-510.66849433,0.00021095,2]
[321950947,1712647860823,-500.0,0.00021095,2]
[321950948,1712647860833,-2122.67,0.00021095,2]
[321950949,1712647860841,-640.43,0.00021095,2]
[321950950,1712647860851,-500.0,0.00021095,2]
[321950951,1712647860860,-586.04,0.00021095,2]
[321950952,1712647860869,-521.44,0.00021095,2]
[321950953,1712647860878,-540.41,0.00021095,2]
[321950954,1712647860887,-500.0,0.00021095,2]
[321950955,1712647860896,-500.0,0.00021095,2]
[321950956,1712647860905,-500.0,0.00021095,2]
[321950957,1712647860914,-500.0,0.00021095,2]
[321950958,1712647860923,-500.0,0.00021095,2]
[321950959,1712647860932,-500.0,0.00021095,2]